bitfinex-derivatives/quotes_BNBF0:USTF0_20250908
["timestamp","ask_amount","ask_price","bid_price","bid_amount"]
[1757355187899,0.61338775,876.01,875.51,0.19827252]
[1757355188098,0.61338775,876.0,875.51,0.19827252]
[1757355188302,0.61338775,875.99,875.51,0.19827252]
[1757355188500,0.61338775,875.98,875.51,0.19827252]
[1757355188699,0.61338775,875.97,875.51,0.19827252]
[1757355188902,0.61338775,875.96,875.51,0.19827252]
[1757355189101,0.61338775,875.95,874.23,1.53294179]
[1757355189302,0.61338775,875.94,874.23,1.53294179]
[1757355189503,0.61338775,875.93,875.55,0.19842854]
[1757355189803,0.61338775,875.92,874.65,0.19842967]
[1757355189998,0.61338775,875.91,874.65,0.19842967]
[1757355190199,0.61338775,875.9,874.65,0.19842967]
[1757355190401,0.61338775,875.89,874.65,0.19842967]
[1757355190600,0.61338775,875.88,874.65,0.19842967]
[1757355190799,0.61338775,875.87,874.65,0.19842967]
[1757355191005,0.61338775,875.86,874.65,0.19842967]
[1757355191200,0.61338775,875.85,874.65,0.19842967]
[1757355191504,0.61338775,875.84,874.65,0.19842967]
[1757355191801,0.61338775,875.83,874.65,0.19842967]
[1757355192004,0.61338775,875.82,874.65,0.19842967]
[1757355192205,0.61338775,875.81,874.65,0.19842967]
[1757355192401,0.61338775,875.8,874.65,0.19842967]
[1757355192704,0.61338775,875.79,874.65,0.19842967]
[1757355193000,0.61338775,875.78,874.65,0.19842967]
[1757355193203,0.61338775,875.77,874.65,0.19842967]
[1757355193404,0.61338775,875.76,874.65,0.19842967]
[1757355193602,0.61338775,875.75,874.65,0.19842967]
[1757355193801,0.61338775,875.74,874.65,0.19842967]
[1757355194103,0.61338775,875.73,874.65,0.19842967]
[1757355194303,0.61338775,875.72,874.65,0.19842967]
[1757355194499,0.61338775,875.71,874.65,0.19842967]
[1757355194702,1.01410661,875.91,874.65,0.19842967]
[1757355194703,0.61338775,875.7,874.65,0.19842967]
[1757355194906,0.61338775,875.69,874.65,0.19842967]
[1757355195106,1.01410661,875.91,874.65,0.19842967]
[1757355195405,0.6138948,875.9,874.65,0.19842967]
[1757355195701,0.6138948,875.89,874.65,0.19842967]
[1757355195905,0.6138948,875.88,874.65,0.19842967]
[1757355196206,0.6138948,875.87,874.65,0.19842967]
[1757355196403,0.6138948,875.86,874.65,0.19842967]
[1757355196707,0.6138948,875.85,874.65,0.19842967]
[1757355196907,0.6138948,875.84,874.65,0.19842967]
[1757355197103,0.6138948,875.83,874.65,0.19842967]
[1757355197304,0.6138948,875.82,874.65,0.19842967]
[1757355197505,0.6138948,875.81,874.65,0.19842967]
[1757355197709,0.6138948,875.8,874.65,0.19842967]
[1757355197906,0.6138948,875.79,874.65,0.19842967]
[1757355198104,0.6138948,875.78,874.65,0.19842967]
[1757355198410,0.6138948,875.77,874.65,0.19842967]
[1757355198606,0.6138948,875.76,874.65,0.19842967]
[1757355198809,0.6138948,875.75,874.65,0.19842967]
[1757355199112,0.6138948,875.74,874.65,0.19842967]
[1757355199309,0.6138948,875.73,874.65,0.19842967]
[1757355199510,0.6138948,875.72,874.65,0.19842967]
[1757355199707,1.01410661,875.9,874.65,0.19842967]
[1757355199708,0.6138948,875.71,874.65,0.19842967]
[1757355199910,0.6138948,875.7,874.65,0.19842967]
[1757355200206,0.6138948,875.69,874.65,0.19842967]
[1757355200407,1.01410661,875.82,874.65,0.19842967]
[1757355200612,0.41575851,875.81,874.5,1.53294179]
[1757355200909,1.01410661,875.94,874.74,1.02416413]
[1757355201813,1.01410661,875.9,874.77,1.02416413]
[1757355202111,1.01410661,875.94,874.8,1.02416413]
[1757355203014,1.01410661,875.89,874.53,1.53294179]
[1757355203515,1.01410661,875.89,874.73,0.19840365]
[1757355204015,1.01410661,875.9,874.73,0.19840365]
[1757355204512,1.01410661,875.91,874.73,0.19840365]
[1757355205215,1.01410661,875.99,874.73,0.19840365]
[1757355207414,1.01410661,876.0,874.73,0.19840365]
[1757355207618,1.01410661,876.01,874.73,0.19840365]
[1757355207913,1.01410661,875.94,874.73,0.19840365]
[1757355208113,1.01410661,876.0,874.74,1.53294179]
[1757355208312,1.01410661,876.0,874.73,1.73134544]
[1757355208517,1.01410661,876.01,874.73,1.73134544]
[1757355209313,1.01410661,876.02,874.73,0.19840365]
[1757355210413,1.01410661,876.03,874.73,0.19840365]
[1757355210618,1.01410661,876.05,874.75,1.53294179]
[1757355210917,1.01410661,876.04,874.75,1.53294179]
[1757355211415,1.01410661,876.05,874.75,1.53294179]
[1757355212515,1.01410661,876.06,874.74,1.53294179]
[1757355212719,0.6312175,876.05,874.74,1.53294179]
[1757355213014,0.6312175,876.04,874.74,1.53294179]
[1757355213319,0.6312175,876.03,874.74,1.53294179]
[1757355213514,0.6312175,876.02,874.74,1.53294179]
[1757355213714,0.6312175,876.01,874.74,1.53294179]
[1757355213914,0.6312175,876.0,874.74,1.53294179]
[1757355214113,0.6312175,875.99,874.74,1.53294179]
[1757355214319,0.6312175,875.98,874.74,1.53294179]
[1757355214520,0.6312175,875.97,874.74,1.53294179]
[1757355214717,0.6312175,875.96,874.74,1.53294179]
[1757355215020,0.6312175,875.95,874.74,1.53294179]
[1757355215218,0.54992702,875.94,874.74,1.53294179]
[1757355215516,1.01410661,876.07,874.74,1.53294179]
[1757355216321,1.01410661,876.07,874.73,1.73134544]
[1757355217421,1.52348966,876.27,874.73,1.73134544]
[1757355217422,1.01410661,876.05,874.76,1.53294179]
[1757355217624,1.01410661,876.04,874.8,1.53294179]
[1757355218026,1.01410661,876.03,874.81,1.53294179]
[1757355218325,1.01410661,876.03,874.82,1.53294179]
[1757355218826,1.01410661,876.06,874.85,1.53294179]
[1757355219429,1.01410661,876.07,874.84,1.53294179]
[1757355219629,1.01410661,876.08,874.86,1.53294179]
[1757355219825,1.01410661,876.12,874.89,1.53294179]
[1757355220038,1.01410661,876.12,874.91,1.53294179]
[1757355220326,1.01410661,876.12,874.9,1.53294179]
[1757355221130,0.88542447,876.12,874.9,1.53294179]
[1757355221327,1.52348966,876.3,874.9,1.53294179]
[1757355221630,1.52348966,876.31,874.9,1.53294179]
[1757355222336,1.52348966,876.31,874.89,1.53294179]
[1757355223329,1.52348966,876.32,874.88,1.53294179]
[1757355224030,1.52348966,876.33,874.88,1.53294179]
[1757355224329,1.52348966,876.33,874.87,1.53294179]
[1757355224534,1.52348966,876.34,874.87,1.53294179]
[1757355225334,1.52348966,876.34,874.86,1.53294179]
[1757355225631,1.52348966,876.33,874.86,1.53294179]
[1757355226033,1.52348966,876.26,874.92,1.53294179]
[1757355226930,1.52348966,876.27,874.91,1.53294179]
[1757355227130,0.43907681,876.26,874.91,1.53294179]
[1757355227333,1.52348966,876.27,874.91,1.53294179]
[1757355227630,1.52348966,876.28,874.91,1.53294179]
[1757355228532,1.52348966,876.27,874.91,1.53294179]
[1757355229036,1.52348966,876.28,874.91,1.53294179]
[1757355229746,1.52348966,876.27,874.91,1.53294179]
[1757355230033,1.52348966,876.28,874.91,1.53294179]
[1757355230432,1.52348966,876.28,874.9,1.53294179]
[1757355231233,1.52348966,876.28,874.73,0.19840365]
[1757355231234,1.52348966,876.38,874.89,1.53294179]
[1757355231433,1.52348966,876.38,874.88,1.53294179]
[1757355232236,1.52348966,876.39,874.88,1.53294179]
[1757355232538,1.52348966,876.39,874.87,1.53294179]
[1757355233433,1.52348966,876.4,874.87,1.53294179]
[1757355233837,1.52348966,876.39,874.87,1.53294179]
[1757355234637,1.52348966,876.39,874.88,1.53294179]
[1757355235335,1.52348966,876.4,874.87,1.53294179]
[1757355235943,1.52348966,876.39,874.87,1.53294179]
[1757355238745,1.52348966,876.41,874.86,1.53294179]
[1757355239239,0.62556575,876.4,874.86,1.53294179]
[1757355239439,0.62556575,876.39,874.86,1.53294179]
[1757355239644,0.62556575,876.38,874.86,1.53294179]
[1757355239844,0.62556575,876.37,874.86,1.53294179]
[1757355240042,0.62556575,876.36,874.86,1.53294179]
[1757355240245,0.62556575,876.35,874.86,1.53294179]
[1757355240546,0.62556575,876.34,874.86,1.53294179]
[1757355240740,0.62556575,876.33,874.86,1.53294179]
[1757355241045,0.5505741,876.32,874.91,1.53294179]
[1757355241246,1.52348966,876.35,874.91,1.53294179]
[1757355241945,1.52348966,876.45,874.82,1.53294179]
[1757355242346,1.52348966,876.45,874.83,1.53294179]
[1757355242546,1.52348966,876.45,874.82,1.53294179]
[1757355243747,1.52348966,876.46,874.81,1.53294179]
[1757355244147,1.52348966,876.46,874.82,1.53294179]
[1757355245249,1.52348966,876.45,874.82,1.53294179]
[1757355245458,1.52348966,876.46,874.82,1.53294179]
[1757355246749,1.52348966,876.46,874.81,1.53294179]
[1757355247049,1.52348966,876.47,874.81,1.53294179]
[1757355248750,1.52348966,876.46,874.82,1.53294179]
[1757355250347,1.52348966,876.45,874.82,1.53294179]
[1757355251048,1.52348966,876.46,874.82,1.53294179]
[1757355251246,1.01274654,876.27,874.82,1.53294179]
[1757355251648,1.01274654,876.22,874.88,1.53294179]
[1757355251852,0.89507658,876.22,874.88,1.53294179]
[1757355252254,1.52348966,876.4,874.87,1.53294179]
[1757355252449,1.52348966,876.39,874.88,1.53294179]
[1757355253054,0.6236609,876.38,874.88,1.53294179]
[1757355253255,0.6236609,876.37,874.88,1.53294179]
[1757355253456,0.6236609,876.36,874.88,1.53294179]
[1757355253756,0.6236609,876.35,874.9,1.53294179]
[1757355253956,0.6236609,876.34,874.9,1.53294179]
[1757355254254,0.6236609,876.33,874.73,0.19840365]
[1757355254452,0.6236609,876.32,874.73,0.19840365]
[1757355254755,0.6236609,876.31,874.73,0.19840365]
[1757355254952,0.6236609,876.3,874.73,0.19840365]
[1757355255157,0.6236609,876.29,874.73,0.19840365]
[1757355255356,0.6236609,876.28,874.73,0.19840365]
[1757355255557,0.6236609,876.27,874.73,0.19840365]
[1757355255753,0.6236609,876.26,874.73,0.19840365]
[1757355255957,0.6236609,876.25,874.73,0.19840365]
[1757355256154,0.6236609,876.24,874.73,0.19840365]
[1757355256355,0.6236609,876.23,874.73,0.19840365]
[1757355256656,0.6236609,876.22,874.73,0.19840365]
[1757355256855,0.6236609,876.21,874.73,0.19840365]
[1757355257055,0.6236609,876.2,874.73,0.19840365]
[1757355257354,0.6236609,876.19,874.73,0.19840365]
[1757355257654,0.6236609,876.18,874.73,0.19840365]
[1757355257857,0.6236609,876.17,874.73,0.19840365]
[1757355258056,0.6236609,876.16,874.73,0.19840365]
[1757355258255,0.6236609,876.15,874.73,0.19840365]
[1757355258454,0.6236609,876.14,874.73,0.19840365]
[1757355258758,0.6236609,876.13,874.73,0.19840365]
[1757355258954,0.6236609,876.12,874.73,0.19840365]
[1757355259158,0.6236609,876.11,874.73,0.19840365]
[1757355259361,0.6236609,876.1,874.73,0.19840365]
[1757355259555,0.6236609,876.09,874.73,0.19840365]
[1757355259758,0.6236609,876.08,874.73,0.19840365]
[1757355259955,0.6236609,876.07,874.73,0.19840365]
[1757355260160,0.6236609,876.06,874.73,0.19840365]
[1757355260357,0.6236609,876.05,874.73,0.19840365]
[1757355260656,0.6236609,876.04,874.73,0.19840365]
[1757355260860,0.6236609,876.03,874.73,0.19840365]
[1757355261061,1.52348966,876.72,874.73,0.19840365]
[1757355261261,0.6241484,876.71,874.73,0.19840365]
[1757355261460,0.6241484,876.7,874.73,0.19840365]
[1757355261761,0.6241484,876.69,874.73,0.19840365]
[1757355261960,0.6241484,876.68,874.73,0.19840365]
[1757355262157,0.6241484,876.67,874.73,0.19840365]
[1757355262461,0.6241484,876.66,874.73,0.19840365]
[1757355262760,0.6241484,876.65,874.73,0.19840365]
[1757355262957,0.6241484,876.64,874.73,0.19840365]
[1757355263160,0.6241484,876.63,874.73,0.19840365]
[1757355263359,0.6241484,876.62,874.73,0.19840365]
[1757355263562,0.6241484,876.61,874.73,0.19840365]
[1757355263862,0.6241484,876.6,874.73,0.19840365]
[1757355264062,0.6241484,876.59,874.73,0.19840365]
[1757355264363,1.52348966,876.44,874.94,1.53294179]
[1757355264558,0.6241484,876.43,874.94,1.53294179]
[1757355264761,0.6241484,876.42,874.94,1.53294179]
[1757355264962,0.6241484,876.41,874.94,1.53294179]
[1757355265262,0.6241484,876.4,874.94,1.53294179]
[1757355265462,0.6241484,876.39,874.94,1.53294179]
[1757355265660,0.6241484,876.38,874.94,1.53294179]
[1757355265864,0.6241484,876.37,874.94,1.53294179]
[1757355266064,0.6241484,876.36,874.94,1.53294179]
[1757355266264,0.6241484,876.35,874.95,1.53294179]
[1757355266463,0.6241484,876.34,874.95,1.53294179]
[1757355266666,0.6241484,876.33,874.95,1.53294179]
[1757355266866,0.6241484,876.32,874.95,1.53294179]
[1757355267066,0.6241484,876.31,874.95,1.53294179]
[1757355267267,0.6241484,876.3,874.96,1.53294179]
[1757355267464,0.6241484,876.29,874.96,1.53294179]
[1757355267670,0.6241484,876.28,874.96,1.53294179]
[1757355267869,0.6241484,876.27,874.96,1.53294179]
[1757355268066,0.6241484,876.26,874.96,1.53294179]
[1757355268365,0.6241484,876.25,874.96,1.53294179]
[1757355268571,0.6241484,876.24,874.97,1.53294179]
[1757355268770,0.6241484,876.23,874.97,1.53294179]
[1757355268967,0.55327497,876.22,874.97,1.53294179]
[1757355269270,1.52348966,876.41,874.97,1.53294179]
[1757355269470,1.52348966,876.39,874.98,1.53294179]
[1757355269770,2.54709829,876.86,875.11,1.53294179]
[1757355269976,2.54709829,876.86,875.09,1.53294179]
[1757355270369,2.54709829,876.91,875.09,1.53294179]
[1757355270568,2.54709829,876.91,875.1,1.53294179]
[1757355271068,2.54709829,876.91,875.09,1.53294179]
[1757355271572,2.54709829,876.91,875.1,1.53294179]
[1757355272068,2.54709829,876.9,875.1,1.53294179]
[1757355272274,2.54709829,876.9,875.06,1.53294179]
[1757355272572,2.54709829,877.0,875.06,1.53294179]
[1757355273272,2.54709829,877.0,875.07,1.53294179]
[1757355273474,2.54709829,876.99,875.07,1.53294179]
[1757355274069,2.54709829,876.99,874.73,0.19840365]
[1757355274372,0.1983505,877.57,874.73,0.19840365]
[1757355280873,0.61662989,877.56,874.73,0.19840365]
[1757355281080,0.61662989,877.55,874.73,0.19840365]
[1757355281280,0.61662989,877.54,874.73,0.19840365]
[1757355281480,0.61662989,877.53,874.73,0.19840365]
[1757355281678,0.61662989,877.52,874.73,0.19840365]
[1757355281878,1.01562376,876.57,874.73,0.19840365]
[1757355282077,0.61662989,876.56,874.73,0.19840365]
[1757355282281,0.61662989,876.55,874.73,0.19840365]
[1757355282577,0.61662989,876.54,874.73,0.19840365]
[1757355282782,0.61662989,876.53,874.73,0.19840365]
[1757355282979,0.61662989,876.52,874.73,0.19840365]
[1757355283278,0.61662989,876.51,874.73,0.19840365]
[1757355283582,0.61662989,876.5,874.73,0.19840365]
[1757355283780,0.61662989,876.49,874.73,0.19840365]
[1757355283978,1.01562376,876.31,874.86,1.53294179]
[1757355284178,0.12295281,876.3,874.86,1.53294179]
[1757355284380,1.01562376,876.31,874.86,1.53294179]
[1757355285079,1.01562376,876.33,875.1,1.02333078]
[1757355285278,1.01562376,876.21,874.99,1.02333078]
[1757355286185,1.01562376,876.15,874.73,0.19840365]
[1757355287986,1.01562376,876.19,874.73,0.19840365]
[1757355290487,1.01562376,876.18,874.73,0.19840365]
[1757355292690,1.01562376,876.08,874.81,1.53294179]
[1757355292888,0.90145459,876.08,874.81,1.53294179]
[1757355293093,1.52357791,876.19,874.89,1.53294179]
[1757355293292,1.52357791,876.19,874.91,1.53294179]
[1757355294789,1.52357791,876.18,874.92,1.53294179]
[1757355295293,1.52357791,876.31,875.04,1.53294179]
[1757355296094,0.62515928,876.3,875.04,1.53294179]
[1757355296390,0.62515928,876.29,875.04,1.53294179]
[1757355296589,0.62515928,876.28,875.04,1.53294179]
[1757355296889,0.62515928,876.27,875.04,1.53294179]
[1757355297092,0.62515928,876.26,875.04,1.53294179]
[1757355297393,0.62515928,876.25,875.04,1.53294179]
[1757355297593,0.62515928,876.24,875.04,1.53294179]
[1757355297792,1.52357791,876.19,875.11,1.53294179]
[1757355297990,0.62515928,876.18,875.1,1.53294179]
[1757355298190,0.62515928,876.17,875.09,1.53294179]
[1757355298494,0.62515928,876.16,875.09,1.53294179]
[1757355298694,0.62515928,876.15,875.09,1.53294179]
[1757355298893,0.34829765,876.14,875.09,1.53294179]
[1757355299090,0.61707644,876.21,875.09,1.53294179]
[1757355299293,0.61707644,876.21,875.1,1.53294179]
[1757355299589,2.54709829,876.81,875.28,1.02364641]
[1757355299794,2.54709829,876.81,875.26,1.02364641]
[1757355299988,2.54709829,876.9,875.26,1.02364641]
[1757355300594,2.54709829,876.9,875.25,1.02364641]
[1757355300993,2.54709829,876.93,875.25,1.02364641]
[1757355301488,2.54709829,876.93,875.04,1.53294179]
[1757355301794,2.54709829,876.93,875.05,1.53294179]
[1757355302089,2.54709829,876.9,875.05,1.53294179]
[1757355302593,2.54709829,876.9,875.06,1.53294179]
[1757355303094,2.54709829,876.93,875.06,1.53294179]
[1757355303788,2.54709829,876.94,875.06,1.53294179]
[1757355304295,2.54709829,876.94,875.04,0.19829173]
[1757355304692,2.54709829,877.02,875.04,0.19829173]
[1757355305194,2.54709829,877.03,875.04,0.19829173]
[1757355305693,2.54709829,876.96,875.04,0.19829173]
[1757355306092,2.54709829,877.18,875.04,0.19829173]
[1757355306697,2.54709829,877.19,875.04,0.19829173]
[1757355307098,3.57143795,877.58,875.04,0.19829173]
[1757355307701,0.19825953,877.75,875.04,0.19829173]
[1757355310898,0.63162288,877.74,875.04,0.19829173]
[1757355311099,0.63162288,877.73,875.04,0.19829173]
[1757355311403,0.63162288,877.72,875.04,0.19829173]
[1757355311698,0.63162288,877.71,875.04,0.19829173]
[1757355311899,0.63162288,877.7,875.04,0.19829173]
[1757355312098,0.19825953,877.75,875.04,0.19829173]
[1757355312099,0.63162288,877.69,875.04,0.19829173]
[1757355312404,0.63162288,877.68,875.04,0.19829173]
[1757355312601,0.63162288,877.67,875.04,0.19829173]
[1757355312798,0.63162288,877.66,875.04,0.19829173]
[1757355313002,0.63162288,877.65,875.04,0.19829173]
[1757355313203,0.63162288,877.64,875.04,0.19829173]
[1757355313403,0.63162288,877.63,875.04,0.19829173]
[1757355313601,0.63162288,877.62,875.04,0.19829173]
[1757355313801,0.63162288,877.61,875.04,0.19829173]
[1757355314101,0.63162288,877.6,875.04,0.19829173]
[1757355314304,0.63162288,877.59,875.04,0.19829173]
[1757355314602,0.63162288,877.58,875.04,0.19829173]
[1757355314904,0.63162288,877.57,875.04,0.19829173]
[1757355315203,0.63162288,877.56,875.04,0.19829173]
[1757355315501,0.63162288,877.55,875.04,0.19829173]
[1757355315700,0.63162288,877.54,875.04,0.19829173]
[1757355316001,0.63162288,877.53,875.04,0.19829173]
[1757355316197,0.63162288,877.52,875.04,0.19829173]
[1757355316402,0.63162288,877.51,875.04,0.19829173]
[1757355316698,0.63162288,877.5,875.04,0.19829173]
[1757355316902,2.54709829,877.2,875.04,0.19829173]
[1757355317102,0.63162288,877.19,875.04,0.19829173]
[1757355317301,2.54709829,877.2,875.04,0.19829173]
[1757355317302,0.63162288,877.18,875.04,0.19829173]
[1757355317501,0.63162288,877.17,875.04,0.19829173]
[1757355317705,0.63162288,877.16,875.04,0.19829173]
[1757355317899,0.63162288,877.15,875.04,0.19829173]
[1757355318102,0.63162288,877.14,875.04,0.19829173]
[1757355318306,0.63162288,877.13,875.04,0.19829173]
[1757355318500,0.63162288,877.12,875.04,0.19829173]
[1757355318701,0.63162288,877.11,875.04,0.19829173]
[1757355318904,0.63162288,877.1,875.04,0.19829173]
[1757355319207,1.51999242,876.62,875.04,0.19829173]
[1757355319404,0.63162288,876.61,875.04,0.19829173]
[1757355319602,0.63162288,876.6,875.04,0.19829173]
[1757355319799,0.63162288,876.59,875.04,0.19829173]
[1757355320005,0.63162288,876.58,875.04,0.19829173]
[1757355320301,0.63162288,876.57,875.04,0.19829173]
[1757355320505,0.63162288,876.56,875.04,0.19829173]
[1757355320705,0.63162288,876.55,875.04,0.19829173]
[1757355320905,0.63162288,876.54,875.04,0.19829173]
[1757355321103,0.30633895,876.53,875.04,0.19829173]
[1757355321305,1.51999242,876.64,875.04,0.19829173]
[1757355323106,1.01297375,876.44,875.04,0.19829173]
[1757355324110,1.01297375,876.45,875.04,0.19829173]
[1757355325109,1.01297375,876.44,875.04,0.19829173]
[1757355325306,1.01297375,876.52,875.04,0.19829173]
[1757355326707,1.01297375,876.44,875.08,1.53294179]
[1757355326906,0.88936871,876.44,875.08,1.53294179]
[1757355327309,1.51999242,876.62,875.08,1.53294179]
[1757355328008,1.51999242,876.61,875.09,1.53294179]
[1757355329111,0.75297906,876.61,875.09,1.53294179]
[1757355329412,2.54709829,877.28,875.11,1.53294179]
[1757355329814,2.54709829,877.3,875.11,1.53294179]
[1757355330213,2.54709829,877.3,875.12,1.53294179]
[1757355330512,2.54709829,877.27,875.11,1.53294179]
[1757355330910,2.54709829,877.28,875.11,1.53294179]
[1757355333014,0.61739545,877.27,875.11,1.53294179]
[1757355333314,0.61739545,877.26,875.1,1.53294179]
[1757355333609,0.61739545,877.25,875.1,1.53294179]
[1757355333815,0.61739545,877.24,875.08,1.53294179]
[1757355334012,0.61739545,877.23,875.1,1.53294179]
[1757355334214,0.61739545,877.22,875.1,1.53294179]
[1757355334513,0.61739545,877.21,875.1,1.53294179]
[1757355334711,0.61739545,877.2,875.1,1.53294179]
[1757355334915,0.61739545,877.19,875.1,1.53294179]
[1757355335215,0.61739545,877.18,875.17,1.53294179]
[1757355335413,0.61739545,877.17,875.17,1.53294179]
[1757355335614,0.61739545,877.16,875.13,1.53294179]
[1757355335814,0.61739545,877.15,875.13,1.53294179]
[1757355336018,0.61739545,877.14,875.13,1.53294179]
[1757355336211,0.61739545,877.13,875.14,1.53294179]
[1757355336514,0.61739545,877.12,875.14,1.53294179]
[1757355336713,0.61739545,877.11,875.14,1.53294179]
[1757355336916,0.61739545,877.1,875.14,1.53294179]
[1757355337114,0.61739545,877.09,875.16,1.53294179]
[1757355337412,0.61739545,877.08,875.16,1.53294179]
[1757355337614,0.61739545,877.07,875.16,1.53294179]
[1757355337812,0.61739545,877.06,875.16,1.53294179]
[1757355338113,0.61739545,877.05,875.24,1.53294179]
[1757355338316,0.61739545,877.04,875.24,1.53294179]
[1757355338513,0.61739545,877.03,875.24,1.53294179]
[1757355338717,0.61739545,877.02,875.24,1.53294179]
[1757355338917,0.61739545,877.01,875.26,1.53294179]
[1757355339214,0.61739545,877.0,875.26,1.53294179]
[1757355339417,0.61739545,876.99,875.26,1.53294179]
[1757355339714,0.61739545,876.98,875.26,1.53294179]
[1757355339915,0.61739545,876.97,875.26,1.53294179]
[1757355340214,0.61739545,876.96,875.26,1.53294179]
[1757355340418,0.61739545,876.95,875.26,1.53294179]
[1757355340615,0.61739545,876.94,875.26,1.53294179]
[1757355340819,0.61739545,876.93,875.26,1.53294179]
[1757355341017,0.61739545,876.92,875.26,1.53294179]
[1757355341214,0.61739545,876.92,875.04,0.19829173]
[1757355341215,0.61739545,876.91,875.25,1.53294179]
[1757355341420,0.61739545,876.9,875.25,1.53294179]
[1757355341714,0.61739545,876.9,875.04,0.19829173]
[1757355341715,0.61739545,876.89,875.26,1.53294179]
[1757355341920,0.61739545,876.88,875.26,1.53294179]
[1757355342220,0.61739545,876.87,875.26,1.53294179]
[1757355342417,0.61739545,876.86,875.26,1.53294179]
[1757355342618,0.61739545,876.85,875.26,1.53294179]
[1757355342817,0.61739545,876.84,875.25,1.53294179]
[1757355343118,0.61739545,876.83,875.25,1.53294179]
[1757355343318,0.61739545,876.82,875.18,1.53294179]
[1757355343516,0.61739545,876.81,875.18,1.53294179]
[1757355343718,2.54709829,877.57,875.18,1.53294179]
[1757355343719,0.61739545,876.8,875.18,1.53294179]
[1757355343919,0.61739545,876.79,875.18,1.53294179]
[1757355344222,0.61739545,876.78,875.18,1.53294179]
[1757355344423,0.61739545,876.77,875.18,1.53294179]
[1757355344622,0.61739545,876.76,875.18,1.53294179]
[1757355344823,0.61739545,876.75,875.18,1.53294179]
[1757355345025,2.54709829,877.57,875.18,1.53294179]
[1757355345026,0.61739545,876.74,875.18,1.53294179]
[1757355345325,0.61739545,876.73,875.18,1.53294179]
[1757355345623,0.61739545,876.72,875.18,1.53294179]
[1757355345820,0.61739545,876.71,875.18,1.53294179]
[1757355346124,0.61739545,876.7,875.18,1.53294179]
[1757355346419,0.61739545,876.69,875.18,1.53294179]
[1757355346622,2.54709829,877.57,875.18,1.53294179]
[1757355346623,0.61739545,876.68,875.18,1.53294179]
[1757355346825,0.61739545,876.67,875.19,1.53294179]
[1757355347024,0.61739545,876.66,875.19,1.53294179]
[1757355347230,0.61739545,876.65,875.19,1.53294179]
[1757355347530,0.61739545,876.64,875.19,1.53294179]
[1757355347830,0.61739545,876.63,875.19,1.53294179]
[1757355348026,0.61739545,876.62,875.19,1.53294179]
[1757355348230,0.61739545,876.61,875.19,1.53294179]
[1757355348431,0.61739545,876.6,875.2,1.53294179]
[1757355348629,0.61739545,876.59,875.2,1.53294179]
[1757355348830,0.61739545,876.58,875.2,1.53294179]
[1757355349031,0.61739545,876.57,875.2,1.53294179]
[1757355349229,0.61739545,876.56,875.2,1.53294179]
[1757355349428,0.61739545,876.55,875.21,1.53294179]
[1757355349632,0.61739545,876.54,875.2,1.53294179]
[1757355349932,1.51913088,876.83,875.2,1.53294179]
[1757355349933,0.61739545,876.53,875.2,1.53294179]
[1757355350129,0.61739545,876.52,875.2,1.53294179]
[1757355350333,0.61739545,876.51,875.21,1.53294179]
[1757355350533,0.61739545,876.5,875.2,1.53294179]
[1757355350733,0.61739545,876.49,875.2,1.53294179]
[1757355350933,0.61739545,876.48,875.2,1.53294179]
[1757355351230,0.61739545,876.47,875.2,1.53294179]
[1757355351434,0.61739545,876.46,875.21,1.53294179]
[1757355351730,0.61739545,876.45,875.21,1.53294179]
[1757355352033,0.61739545,876.44,875.21,1.53294179]
[1757355352233,0.54486593,876.43,875.21,1.53294179]
[1757355352437,1.51913088,876.82,875.21,1.53294179]
[1757355352933,1.51913088,876.82,875.22,1.53294179]
[1757355353134,1.51913088,876.75,875.28,1.53294179]
[1757355353334,2.54709829,877.38,875.04,0.19829173]
[1757355353335,1.51913088,876.73,875.29,1.53294179]
[1757355353534,1.51913088,876.72,875.3,1.53294179]
[1757355354437,1.51913088,876.72,875.31,1.53294179]
[1757355356238,1.51913088,876.71,875.31,1.53294179]
[1757355356439,1.51913088,876.71,875.32,1.53294179]
[1757355356840,1.01342024,876.56,875.32,1.53294179]
[1757355357038,0.52705033,876.56,875.32,1.53294179]
[1757355357238,1.51913088,876.72,875.33,1.53294179]
[1757355357438,1.51913088,876.72,875.34,1.53294179]
[1757355358335,2.54709829,877.32,875.35,1.53294179]
[1757355358938,2.54709829,877.32,875.34,1.53294179]
[1757355359135,2.54709829,877.32,875.35,1.53294179]
[1757355359335,2.54709829,877.32,875.5,1.02050214]
[1757355359539,2.54709829,877.32,875.52,1.02050214]
[1757355360135,2.54709829,877.29,875.48,1.02050214]
[1757355360435,2.54709829,877.4,875.49,1.02050214]
[1757355361439,2.54709829,877.4,875.04,0.19829173]
[1757355361440,2.54709829,877.4,875.5,1.02050214]
[1757355361637,2.54709829,877.39,875.5,1.02050214]
[1757355362340,2.54709829,877.39,875.51,1.02050214]
[1757355362541,2.54709829,877.38,875.51,1.02050214]
[1757355363143,2.54709829,877.36,875.51,1.02050214]
[1757355363339,2.54709829,877.36,875.52,1.02050214]
[1757355364339,2.54709829,877.36,875.53,1.02050214]
[1757355364640,2.54709829,877.35,875.53,1.02050214]
[1757355365343,2.54709829,877.35,875.47,1.02050214]
[1757355365643,2.54709829,877.25,875.47,1.02050214]
[1757355366244,2.54709829,877.25,875.48,1.02050214]
[1757355366641,2.54709829,877.24,875.48,1.02050214]